{"text_format":"3","workbook":"xlsx","n_sheets":4,"sheets":["Rozpočet","Aktivity","Realizačný tím","zoznamy"],"not_rendered":{"images":1,"defined_names":1},"read":"whole","date_system":"1900"}

{"sheet":"Rozpočet","index":0,"n_rows":29,"n_cols":5,"rows_kept":29,"merged":[[0,0,0,1]]}
["Priezvisko a meno športovca :",null,null,"Dátum spracovania :"]
[null,"Rozpočet pripravil :",null,"Telefónne číslo :"]
["č.","Stručný popis položky","Kategória","Termín čerpania","Suma"]
[{"$f":"ROW()-3","v":1}]
[2]
[3]
[4]
[5]
[6]
[{"$f":"ROW()-3","v":7}]
[8]
[9]
[10]
[11]
[12]
[13]
[14]
[15]
[16]
[17]
[18]
[19]
[20]
[21]
[22]
[23]
[24]
[25]
["Celková hodnota",{"$nulls":3},{"$f":"SUBTOTAL(109,Tabuľka1[Suma])","v":0}]

{"sheet":"Aktivity","index":1,"n_rows":29,"n_cols":4,"rows_kept":29,"merged":[[0,0,0,1]]}
["Priezvisko a meno športovca :",null,{"$f":"Rozpočet!C1","v":0}]
[null,"Návrh pripravil :"]
["č.","Aktivita","Termín konania","Miesto"]
[1]
[2]
[3]
[4]
[5]
[6]
[7]
[8]
[9]
[10]
[11]
[12]
[13]
[14]
[15]
[16]
[17]
[18]
[19]
[20]
[21]
[22]
[23]
[24]
[25]
["Celková hodnota",null,null,{"$f":"SUBTOTAL(103,Tabuľka13[Miesto])","v":0}]

{"sheet":"Realizačný tím","index":2,"n_rows":19,"n_cols":3,"rows_kept":19,"merged":[[0,0,0,1]]}
["Priezvisko a meno športovca :",null,{"$f":"Rozpočet!C1","v":0}]
[null,"Návrh pripravil :"]
["č.","Meno a priezvisko","Funkcia"]
[1]
[2]
[3]
[4]
[5]
[6]
[7]
[8]
[9]
[10]
[11]
[12]
[13]
[14]
[15]
["Celková hodnota",null,{"$f":"SUBTOTAL(103,Tabuľka134[Funkcia])","v":0}]

{"sheet":"zoznamy","index":3,"n_rows":10,"n_cols":4,"rows_kept":10,"hidden":true}
["Ivana Krištofičová","Tréner","Tréningový proces, sústredenia, výcvikové tábory, prípravné preteky a stretnutia v Slovenskej republike a v zahraničí","Tréningová príprava bežná"]
["Eva Jurková","Asistent trénera","Pitný režim, vitamíny a potravinové doplnky výživy","Športové sústredenie"]
["Thomas Keinath","Fyzioterapeut","Poistenie liečebných nákladov","Regeneračný pobyt "]
["Marek Tutura","Technik","Funkčné vyšetrenia a lekárske vyšetrenia","Nákup materiálneho zabezpečenia"]
["Adrián Babič","Tréningový partner","Diagnostika","Vrcholová súťaž"]
["Július Maťovčík","Psychológ","Regenerácia a rehabilitácia","Súťaž v rámci prípravy"]
["Martina Antušeková","Lekár","Športové náradie, športové náčinie a iné materiálne vybavenie neinvestičného charakteru","Rehabilitácia a regenerácia"]
["Jana Jánošíková",null,"Výdavky na športovcov a športových odborníkov, a to najmä mzdy, odvody"]
[null,null,"Zabezpečenie tréningového partnera"]
[null,null,"Preprava športového materiálu a náčinia"]